bitfinex-derivatives/quotes_SOLF0:USTF0_20250903
["timestamp","ask_amount","ask_price","bid_price","bid_amount"]
[1756899589512,3.47090861,211.19,211.07,2.68897512]
[1756899589811,2.68897512,211.21,211.07,2.68897512]
[1756899590010,3.4714756,211.2,211.07,2.68897512]
[1756899590207,3.4714756,211.19,211.07,2.68897512]
[1756899590508,2.68897512,211.23,211.1,2.68897512]
[1756899590813,3.47206067,211.22,211.1,2.68897512]
[1756899591012,3.47206067,211.21,211.1,2.68897512]
[1756899591212,3.47206067,211.2,211.1,2.68897512]
[1756899591411,2.68897512,211.23,211.1,2.68897512]
[1756899591614,3.47308757,211.22,211.08,2.68897512]
[1756899591807,2.68897512,211.23,211.08,2.68897512]
[1756899591808,3.47308757,211.21,211.08,2.68897512]
[1756899592003,3.47308757,211.2,211.08,2.68897512]
[1756899592207,3.47308757,211.19,211.08,2.68897512]
[1756899592412,2.68897512,211.23,211.08,2.68897512]
[1756899592712,2.68897512,211.2,211.06,2.68897512]
[1756899592907,3.47431508,211.19,211.06,2.68897512]
[1756899594510,3.47431508,211.19,211.06,6.95187512]
[1756899594713,3.47431508,211.19,211.09,2.68897512]
[1756899595115,2.68897512,211.23,211.09,2.68897512]
[1756899595414,3.47632102,211.22,211.09,2.68897512]
[1756899595616,3.47632102,211.21,211.09,2.68897512]
[1756899595813,3.47632102,211.2,211.01,66.3286]
[1756899596012,3.47632102,211.19,211.08,2.68897512]
[1756899596212,2.68897512,211.23,211.08,2.68897512]
[1756899596417,3.47691253,211.22,211.08,2.68897512]
[1756899596617,3.47691253,211.21,211.08,2.68897512]
[1756899596814,3.47691253,211.2,211.08,2.68897512]
[1756899597017,3.47691253,211.19,211.08,2.68897512]
[1756899597718,2.68897512,211.23,211.08,2.68897512]
[1756899597917,3.47822761,211.22,211.08,2.68897512]
[1756899598114,3.47822761,211.21,211.09,4.2623]
[1756899598315,3.47822761,211.2,211.09,4.2623]
[1756899598519,3.47822761,211.19,211.09,4.2623]
[1756899598721,2.68897512,211.23,211.09,4.2623]
[1756899598917,3.47938796,211.22,211.09,4.2623]
[1756899599118,3.47938796,211.21,211.09,4.2623]
[1756899599319,3.47938796,211.2,211.09,4.2623]
[1756899599519,3.47938796,211.19,211.09,4.2623]
[1756899599712,2.68897512,211.23,211.09,4.2623]
[1756899599918,3.48071076,211.22,211.09,4.2623]
[1756899600117,3.48071076,211.21,211.09,4.2623]
[1756899600422,3.48071076,211.2,211.02,66.3262]
[1756899600623,3.48071076,211.19,211.09,2.68897512]
[1756899600823,2.68897512,211.23,211.09,2.68897512]
[1756899601021,3.48142131,211.22,211.12,2.68897512]
[1756899601224,71.28950061,211.26,211.15,2.68897512]
[1756899601418,3.48059777,211.25,211.15,2.68897512]
[1756899601620,3.48059777,211.24,211.15,2.68897512]
[1756899601816,3.48059777,211.23,211.12,2.68897512]
[1756899602020,3.48059777,211.22,211.12,2.68897512]
[1756899602222,3.48059777,211.21,211.12,2.68897512]
[1756899602423,2.68897512,211.25,211.12,2.68897512]
[1756899602623,2.68897512,211.22,211.09,2.68897512]
[1756899602816,3.48296422,211.21,211.09,2.68897512]
[1756899605127,3.48296422,211.21,211.06,2.68897512]
[1756899605326,2.68897512,211.19,211.04,2.68897512]
[1756899605521,3.48296422,211.18,211.04,2.68897512]
[1756899606122,2.68897512,211.16,211.04,2.68897512]
[1756899606330,2.68897512,211.16,210.95,71.60431962]
[1756899606331,2.68897512,211.16,211.01,2.68897512]
[1756899606629,2.68897512,211.13,210.98,2.68897512]
[1756899606824,2.68897512,211.1,210.94,6.59056283]
[1756899607026,2.68897512,211.07,210.93,104.14999831]
[1756899607328,2.68897512,211.07,210.93,106.83897343]
[1756899608624,2.68897512,211.04,210.93,104.14999831]
[1756899610029,2.68897512,211.06,210.93,104.14999831]
[1756899611431,2.68897512,211.03,210.93,104.14999831]
[1756899611729,2.68897512,211.03,210.88,2.68897512]
[1756899612731,2.68897512,211.0,210.88,2.68897512]
[1756899612932,2.68897512,211.0,210.85,2.68897512]
[1756899615334,2.68897512,210.97,210.85,2.68897512]
[1756899615534,1.72712057,210.94,210.81,104.47028339]
[1756899615734,1.72712057,210.92,210.84,1.72712057]
[1756899617034,1.72712057,210.95,210.86,1.72712057]
[1756899617437,1.72712057,210.95,210.81,104.47028339]
[1756899617636,1.72712057,210.95,210.88,0.03202519]
[1756899618439,1.72712057,210.92,210.88,0.03202519]
[1756899618834,1.72712057,210.92,210.84,1.72712057]
[1756899619234,14.2,211.04,210.82,1.72712057]
[1756899619235,1.72712057,210.9,210.82,1.72712057]
[1756899619636,14.2,211.04,210.84,1.72712057]
[1756899619837,1.72712057,210.94,210.84,1.72712057]
[1756899620335,1.72712057,210.95,210.86,1.72712057]
[1756899620633,1.72712057,210.98,210.9,1.72712057]
[1756899621529,1.72712057,210.96,210.88,1.72712057]
[1756899622237,1.72712057,210.92,210.84,1.72712057]
[1756899622438,1.72712057,210.9,210.82,1.72712057]
[1756899623039,1.72712057,210.9,210.81,1.72712057]
[1756899623542,1.72712057,210.92,210.83,1.72712057]
[1756899624941,1.72712057,210.92,210.85,1.72712057]
[1756899625641,1.72712057,210.92,210.85,9.64712057]
[1756899626538,1.72712057,210.92,210.85,7.92]
[1756899626739,1.72712057,210.9,210.85,7.92]
[1756899627343,1.72712057,210.9,210.84,7.92]
[1756899627537,1.72712057,210.92,210.84,7.92]
[1756899627744,1.72712057,210.92,210.85,1.72712057]
[1756899628136,1.72712057,210.92,210.86,7.92]
[1756899628645,1.72712057,210.93,210.86,7.92]
[1756899629346,6.67712057,210.91,210.86,7.92]
[1756899629844,6.67712057,210.91,210.83,1.72712057]
[1756899629845,1.72712057,210.89,210.78,7.92]
[1756899630047,1.72712057,210.89,210.82,7.92]
[1756899630947,1.72712057,210.85,210.78,7.92]
[1756899632043,1.72712057,210.87,210.79,1.72712057]
[1756899632241,1.72712057,210.87,210.8,7.92]
[1756899634350,1.72712057,210.85,210.8,7.92]
[1756899635448,1.72712057,210.85,210.7,0.82568154]
[1756899635647,1.72712057,210.79,210.74,7.92]
[1756899635850,1.72712057,210.79,210.7,9.64712057]
[1756899637139,1.72712057,210.77,210.7,9.64712057]
[1756899637344,1.72712057,210.76,210.7,7.92]
[1756899638351,1.72712057,210.76,210.71,0.0324887]
[1756899638551,1.72712057,210.76,210.71,7.9524887]
[1756899639154,1.72712057,210.76,210.72,7.92]
[1756899639349,4.95,210.81,210.72,9.64712057]
[1756899639549,6.67712057,210.81,210.72,9.64712057]
[1756899640848,1.72712057,210.83,210.75,7.92]
[1756899641948,6.68712057,210.83,210.75,7.92]
[1756899642748,1.72712057,210.85,210.77,1.72712057]
[1756899645153,1.72712057,210.87,210.79,1.72712057]
[1756899646955,1.72712057,210.85,210.78,7.62]
[1756899647454,1.72712057,210.81,210.74,9.34712057]
[1756899647850,1.72712057,210.81,210.74,7.62]
[1756899648453,6.68712057,210.81,210.74,7.62]
[1756899648647,1.72712057,210.76,210.68,7.62]
[1756899648957,1.72712057,210.74,210.68,7.62]
[1756899654062,1.72712057,210.73,210.68,7.62]
[1756899654257,1.72712057,210.73,210.66,7.62]
[1756899657164,1.72712057,210.71,210.66,7.62]
[1756899657460,1.72712057,210.71,210.64,7.62]
[1756899657862,4.96,210.73,210.64,7.62]
[1756899658067,1.72712057,210.73,210.66,7.62]
[1756899658766,1.72712057,210.75,210.67,1.72712057]
[1756899658967,1.72712057,210.75,210.68,7.62]
[1756899659263,1.72712057,210.73,210.65,1.72712057]
[1756899659569,1.72712057,210.73,210.66,7.62]
[1756899660167,4.96,210.76,210.67,1.72712057]
[1756899660472,1.72712057,210.8,210.73,1.72712057]
[1756899660968,4.96,210.82,210.73,1.72712057]
[1756899661169,1.72712057,210.81,210.73,1.72712057]
[1756899661770,1.72712057,210.81,210.74,7.62]
[1756899662167,1.72712057,210.83,210.76,7.62]
[1756899662462,1.72712057,210.85,210.77,1.72712057]
[1756899662862,1.72712057,210.85,210.76,7.62]
[1756899663068,1.72712057,210.85,210.77,1.72712057]
[1756899663973,6.68712057,210.86,210.78,7.62]
[1756899664668,0.82567175,210.95,210.79,1.72712057]
[1756899664874,1.72712057,210.88,210.79,1.72712057]
[1756899665070,1.72712057,210.88,210.8,7.62]
[1756899665768,1.72712057,210.87,210.8,7.62]
[1756899666375,1.72712057,210.9,210.82,7.62]
[1756899668273,1.72712057,210.9,210.83,1.72712057]
[1756899668474,4.96,210.91,210.83,1.72712057]
[1756899668774,6.68712057,210.91,210.83,1.72712057]
[1756899669468,4.96,210.91,210.85,1.72712057]
[1756899669676,1.72712057,210.94,210.85,1.72712057]
[1756899671779,1.72712057,210.94,210.87,1.72712057]
[1756899672479,4.94,210.95,210.89,1.72712057]
[1756899672678,4.96,210.99,210.91,1.72712057]
[1756899672880,6.68712057,210.99,210.91,1.72712057]
[1756899674274,4.96,210.99,210.91,1.72712057]
[1756899674681,4.96,210.99,210.93,1.72712057]
[1756899674877,4.96,210.99,210.92,1.72712057]
[1756899676678,4.96,210.99,210.9,7.82]
[1756899676880,4.96,210.99,210.92,1.72712057]
[1756899677583,4.96,210.99,210.9,7.82]
[1756899679282,0.82520185,211.07,210.9,7.82]
[1756899679485,4.96,210.96,210.84,7.82]
[1756899679680,2.69687049,210.97,210.84,7.82]
[1756899679890,4.96,210.93,210.84,7.82]
[1756899680382,4.96,210.93,210.8,10.51687049]
[1756899680683,4.96,210.9,210.8,10.51687049]
[1756899680985,4.96,210.9,210.8,7.82]
[1756899683380,4.96,210.87,210.8,7.82]
[1756899683685,4.96,210.87,210.75,7.82]
[1756899684285,4.96,210.84,210.75,7.82]
[1756899685685,2.69687049,210.96,210.71,7.82]
[1756899685686,4.96,210.81,210.71,7.82]
[1756899687493,2.69687049,210.79,210.71,7.82]
[1756899689487,4.96,210.81,210.71,7.82]
[1756899695990,2.69687049,210.8,210.71,7.82]
[1756899696298,4.96,210.76,210.64,7.82]
[1756899700195,4.96,210.73,210.64,7.82]
[1756899703201,7.65687049,210.77,210.64,7.82]
[1756899704495,7.65687049,210.76,210.64,7.82]
[1756899705605,7.65687049,210.76,210.64,12.0913]
[1756899705899,7.65687049,210.8,210.66,7.6]
[1756899706104,7.65687049,210.8,210.68,4.2706]
[1756899706400,7.65687049,210.8,210.69,7.6]
[1756899708203,4.96,210.79,210.69,7.6]
[1756899708405,4.96,210.76,210.69,7.6]
[1756899709707,4.96,210.79,210.69,7.6]
[1756899712006,4.96,210.79,210.71,7.6]
[1756899713307,2.69687049,210.83,210.71,7.6]
[1756899713507,4.96,210.84,210.71,7.6]
[1756899713703,4.96,210.84,210.72,4.2698]
[1756899713910,4.96,210.84,210.73,7.6]
[1756899717405,4.96,210.82,210.7,7.6]
[1756899717806,2.69687049,210.83,210.7,7.6]
[1756899718007,4.96,210.82,210.7,7.6]
[1756899718508,2.69687049,210.83,210.7,7.6]
[1756899718812,4.96,210.82,210.7,7.6]
[1756899719109,4.96,210.82,210.71,7.6]
[1756899724714,2.69687049,210.85,210.71,7.6]
[1756899725017,4.96,210.86,210.78,7.6]
[1756899725312,4.96,210.9,210.78,7.6]
[1756899725516,4.96,210.9,210.81,7.6]
[1756899729018,4.96,210.96,210.84,7.6]
[1756899729420,4.96,211.01,210.89,2.69687049]
[1756899729624,4.96,211.01,210.9,7.6]
[1756899730224,2.69687049,210.97,210.84,7.6]
[1756899730422,4.95,210.96,210.84,7.6]
[1756899731120,4.95,210.93,210.78,7.6]
[1756899731321,4.95,210.93,210.81,7.6]
[1756899733721,5.32971144,211.01,210.83,2.69687049]
[1756899733929,4.96,210.97,210.84,7.28]
[1756899735531,4.96,210.97,210.87,7.28]
[1756899735928,4.96,211.04,210.9,7.28]
[1756899736128,4.96,211.02,210.9,7.28]
[1756899736829,2.69687049,211.03,210.9,7.28]
[1756899737127,4.96,211.02,210.9,7.28]
[1756899737521,1.72600987,211.0,210.92,1.72600987]
[1756899739832,4.96,211.02,210.93,7.28]
[1756899740033,1.72600987,211.01,210.93,7.28]
[1756899740529,1.72600987,211.01,210.93,9.00600987]
[1756899741232,4.96,211.02,210.93,9.00600987]
[1756899741532,1.72600987,211.01,210.93,9.00600987]
[1756899743738,1.72600987,211.0,210.93,9.00600987]
[1756899745839,1.72600987,211.03,210.96,7.28]
[1756899746034,4.96,211.02,210.95,7.28]
[1756899746233,107.04242772,211.1,210.97,7.28]
[1756899746435,1.72600987,211.04,210.97,7.28]
[1756899748029,4.96,211.05,210.97,7.28]
[1756899748329,1.72600987,211.04,210.97,7.28]
[1756899749234,4.96,211.05,210.97,7.28]
[1756899749438,6.68600987,211.02,210.97,7.28]
[1756899751840,6.68600987,211.06,210.98,1.72600987]
[1756899755743,6.68600987,211.06,210.97,7.28]
[1756899756044,6.68600987,211.06,210.98,1.72600987]
[1756899757939,4.96,211.06,210.98,1.72600987]
[1756899758146,6.68600987,211.06,210.98,1.72600987]
[1756899759036,4.96,211.06,210.98,1.72600987]
[1756899759344,6.68600987,211.06,210.98,1.72600987]
[1756899761435,1.72600987,211.04,210.98,1.72600987]
[1756899761640,4.95,211.03,210.97,7.28]
[1756899761841,4.95,211.03,210.97,9.00600987]
[1756899762236,4.95,211.03,210.97,7.28]
[1756899762442,4.95,211.03,210.8,66.3942]
[1756899762443,4.95,211.01,210.94,1.72600987]
[1756899762736,0.82496711,211.12,210.97,7.53]
[1756899762737,4.95,211.05,210.97,7.53]
[1756899762936,4.95,211.05,210.98,1.72600987]
[1756899763146,6.67600987,211.05,210.98,1.72600987]
[1756899763346,6.67600987,211.05,210.97,9.25600987]
[1756899763841,1.72600987,211.03,210.97,9.25600987]
[1756899764042,4.95,211.05,210.97,7.53]
[1756899764345,1.72600987,211.04,210.97,7.53]
[1756899766443,1.72600987,211.07,210.99,7.53]
[1756899766644,1.72600987,211.07,210.99,9.25600987]
[1756899768351,1.72600987,211.05,210.99,7.53]
[1756899768849,1.72600987,211.04,210.97,7.53]
[1756899769444,1.72600987,211.04,210.98,1.72600987]
[1756899769642,6.67600987,211.06,210.98,1.72600987]
[1756899771149,1.72600987,211.04,210.97,7.53]
[1756899771546,4.95,211.06,210.97,7.53]
[1756899771547,1.72600987,211.02,210.97,7.53]
[1756899771747,4.95,211.01,210.97,7.53]
[1756899772351,1.72600987,211.02,210.97,7.53]
[1756899772552,4.95,211.01,210.97,7.53]
[1756899772953,4.95,211.01,210.95,7.53]
[1756899773850,1.72600987,211.0,210.94,7.53]
[1756899774050,1.72600987,210.96,210.88,1.72600987]
[1756899774354,1.72600987,210.96,210.89,7.53]
[1756899774751,4.95,210.95,210.87,7.53]
[1756899775055,1.72600987,210.94,210.87,7.53]
[1756899776151,1.72600987,210.9,210.82,1.72600987]
[1756899776449,1.72600987,210.9,210.83,7.53]
[1756899776849,1.72600987,210.88,210.8,1.72600987]
[1756899777152,1.72600987,210.88,210.81,7.53]
[1756899780351,6.67600987,210.86,210.81,7.53]
[1756899780552,4.95,210.85,210.81,7.53]
[1756899781147,1.72600987,210.86,210.78,7.53]
[1756899781347,1.72600987,210.84,210.78,7.53]
[1756899781550,4.95,210.88,210.78,7.53]
[1756899781755,1.72600987,210.85,210.78,7.53]
[1756899782654,6.67600987,210.83,210.78,7.53]
[1756899782959,6.67600987,210.83,210.75,7.53]
[1756899786757,4.95,210.83,210.75,7.53]
[1756899787063,1.72600987,210.84,210.77,7.53]
[1756899787565,4.95,210.87,210.77,7.53]
[1756899787861,1.72600987,210.86,210.79,7.53]
[1756899788056,1.72600987,210.88,210.8,1.72600987]
[1756899788253,1.72600987,210.88,210.81,7.53]
[1756899788654,1.72600987,210.9,210.83,7.53]
[1756899789059,4.95,210.91,210.83,7.53]
[1756899789252,14.24,211.01,210.83,7.53]
[1756899789253,6.67600987,210.88,210.83,7.53]
[1756899789462,1.72600987,210.86,210.79,7.53]
[1756899789663,1.72600987,210.84,210.77,1.72600987]
[1756899789864,1.72600987,210.84,210.78,7.53]
[1756899792967,1.72600987,210.82,210.78,7.53]
[1756899793262,1.72600987,210.82,210.76,7.66]
[1756899795570,1.72600987,210.8,210.76,7.66]
[1756899796866,1.72600987,210.78,210.68,7.66]
[1756899797060,1.72600987,210.76,210.68,7.66]
[1756899797363,6.68600987,210.76,210.68,7.66]
[1756899799671,4.96,210.76,210.68,7.66]
[1756899800073,5.32971144,210.89,210.68,7.66]
[1756899800074,7.66341831,210.81,210.68,7.66]
[1756899801965,2.70341831,210.78,210.68,7.66]
[1756899802169,7.66341831,210.78,210.68,7.66]
[1756899804772,14.24,210.89,210.68,7.66]
[1756899804976,14.24,210.89,210.62,66.4503]
[1756899804977,4.96,210.83,210.71,7.66]
[1756899806273,4.96,210.83,210.74,7.66]
[1756899807777,7.66341831,210.87,210.74,7.66]
[1756899808074,4.96,210.87,210.77,7.66]
[1756899808880,4.96,210.92,210.83,7.66]
[1756899810070,2.70341831,210.97,210.83,7.66]
[1756899810277,2.70341831,210.97,210.86,7.66]
[1756899810278,4.96,210.97,210.86,7.66]
[1756899811081,4.96,210.97,210.89,7.66]
[1756899814678,4.96,211.02,210.89,7.66]
[1756899814874,4.96,211.02,210.92,7.66]
[1756899822285,4.96,211.02,210.83,4.2675]
[1756899822286,2.70341831,211.0,210.86,7.65]
[1756899822477,4.96,210.96,210.86,7.65]
[1756899825188,4.96,210.96,210.87,7.65]
[1756899826093,2.70341831,210.99,210.87,7.65]
[1756899826787,4.96,211.01,210.87,7.65]
[1756899827190,4.96,210.98,210.87,7.65]
[1756899829801,4.96,210.95,210.87,7.65]
[1756899834104,7.66341831,210.95,210.87,7.65]
[1756899839404,2.70341831,210.99,210.87,7.65]
[1756899839804,4.96,211.0,210.87,7.65]
[1756899840000,4.96,210.98,210.87,7.65]
[1756899842306,4.96,210.95,210.87,7.65]
[1756899844510,7.66341831,210.99,210.87,7.65]
[1756899845613,4.96,210.99,210.87,7.65]
[1756899848713,5.32971144,211.05,210.92,2.70341831]
[1756899848714,4.96,211.03,210.92,2.70341831]
[1756899849016,4.96,211.03,210.93,7.65]
[1756899849614,4.96,211.03,210.95,2.70341831]
[1756899849918,4.96,211.03,210.96,7.65]
[1756899850717,7.65341831,211.07,210.96,7.65]
[1756899850916,4.95,211.07,210.96,7.65]
[1756899851916,7.65341831,211.07,210.96,7.65]
[1756899852815,4.95,211.07,210.96,7.65]
[1756899853014,2.70341831,211.06,210.96,7.65]
[1756899853219,4.94,211.05,210.96,7.65]
[1756899857721,4.94,211.02,210.96,7.65]
[1756899858621,4.94,211.02,210.9,7.14]
[1756899859420,1.72613643,210.99,210.91,1.72613643]
[1756899859625,1.72613643,210.99,210.92,7.14]
[1756899867027,1.72613643,210.95,210.92,7.14]
[1756899867529,1.72613643,210.95,210.88,7.14]
[1756899868638,1.72613643,210.95,210.88,8.86613643]
[1756899869035,1.72613643,210.97,210.91,7.14]
[1756899873732,6.66613643,210.95,210.91,7.14]
[1756899874236,6.66613643,210.95,210.88,7.14]
[1756899874434,4.94,210.95,210.88,7.14]
[1756899874637,1.72613643,210.96,210.9,7.14]
[1756899874935,4.94,210.98,210.9,7.14]
[1756899874936,6.66613643,210.98,210.9,7.14]
[1756899879443,1.72613643,210.97,210.9,7.14]
[1756899880037,4.94,211.03,210.92,7.14]
[1756899880237,1.72613643,211.01,210.94,7.14]
[1756899880441,6.66613643,211.01,210.94,7.14]
[1756899881843,5.32971144,211.05,210.94,7.14]
[1756899881844,4.95,210.98,210.94,7.14]
[1756899882142,1.72613643,210.97,210.91,7.69]
[1756899882941,4.95,210.98,210.91,7.69]
[1756899883142,1.72613643,210.96,210.88,1.72613643]
[1756899883344,1.72613643,210.96,210.89,7.69]
[1756899884141,1.72613643,210.96,210.9,1.72613643]
[1756899885855,1.72613643,210.97,210.9,1.72613643]
[1756899886654,1.72613643,210.97,210.91,7.69]
[1756899886855,4.95,210.98,210.91,7.69]
[1756899888053,1.72613643,210.97,210.91,7.69]
[1756899890252,4.95,210.98,210.91,7.69]
[1756899890559,1.72613643,210.96,210.91,7.69]
[1756899890755,4.95,210.95,210.91,7.69]
[1756899892059,4.95,210.95,210.88,1.72613643]
[1756899892253,4.95,210.95,210.89,7.69]
[1756899892849,1.72613643,210.96,210.89,7.69]
[1756899897057,1.72613643,210.96,210.88,1.72613643]
[1756899897058,4.95,211.01,210.91,7.69]
[1756899897358,6.67613643,211.01,210.93,1.72613643]
[1756899897559,6.67613643,211.01,210.94,7.69]
[1756899898360,6.67613643,211.05,210.98,7.69]
[1756899898561,4.95,211.05,210.98,7.69]
[1756899898760,4.95,211.05,210.98,9.41613643]
[1756899899460,1.72613643,211.0,210.93,7.69]
[1756899899762,4.95,211.01,210.93,9.41613643]
[1756899900265,1.72613643,211.0,210.93,9.41613643]
[1756899900959,1.72613643,210.98,210.93,7.69]
[1756899901156,1.72613643,210.98,210.88,3.95234552]
[1756899901157,1.72613643,210.96,210.89,7.69]
[1756899901558,4.95,210.97,210.89,7.69]
[1756899901756,1.72613643,210.98,210.91,7.69]
[1756899903762,1.72613643,211.0,210.92,1.72613643]
[1756899903968,6.67613643,211.01,210.93,7.69]
[1756899904167,6.67613643,211.01,210.95,7.69]
[1756899904463,1.72613643,211.01,210.95,7.69]
[1756899904661,5.32971144,211.04,210.99,7.69]
[1756899904861,1.72613643,211.06,210.99,7.69]
[1756899905466,1.72613643,211.04,210.96,1.72613643]
[1756899905665,1.72613643,211.04,210.95,7.69]
[1756899905666,1.72613643,211.02,210.95,7.69]
[1756899906563,1.72613643,211.0,210.95,7.69]
[1756899906768,1.72613643,210.98,210.91,7.69]
[1756899907167,1.72613643,210.98,210.91,9.41613643]
[1756899907365,1.72613643,210.99,210.91,9.41613643]
[1756899907563,1.72613643,210.99,210.91,7.69]
[1756899907766,1.72613643,210.97,210.91,7.69]
[1756899907966,1.72613643,210.93,210.86,7.69]
[1756899912172,6.66613643,210.91,210.84,7.26]
[1756899913769,1.72613643,210.89,210.8,3.95234552]
[1756899913976,1.72613643,210.87,210.81,7.26]
[1756899914167,1.72613643,210.85,210.81,7.26]
[1756899914771,1.72613643,210.85,210.77,7.26]
[1756899916268,1.72613643,210.83,210.77,7.26]
[1756899919475,4.94,210.86,210.77,7.26]
[1756899923471,2.70098037,210.87,210.77,7.26]
[1756899923670,4.94,210.86,210.77,7.26]
[1756899926478,2.70098037,210.84,210.77,7.26]
[1756899929176,4.94,210.86,210.77,7.26]
[1756899929380,2.70098037,210.89,210.77,7.26]
[1756899930387,107.4446301,210.95,210.79,2.70098037]
[1756899930583,107.4446301,210.95,210.84,7.26]
[1756899931478,4.96,210.94,210.84,7.26]
[1756899936188,4.96,210.94,210.86,7.26]
[1756899940998,102.4846301,210.95,210.86,7.26]
[1756899941198,4.96,210.99,210.89,7.26]
[1756899944295,4.96,210.99,210.9,7.77]
[1756899948400,4.96,210.96,210.84,7.77]
[1756899951797,2.70098037,210.94,210.84,7.77]
[1756899951996,5.28686213,211.02,210.84,7.77]
[1756899951997,7.66098037,210.97,210.84,2.70098037]
[1756899952196,7.66098037,210.97,210.85,7.77]
[1756899953200,4.96,210.97,210.88,7.77]
[1756899965119,2.70098037,210.98,210.88,7.77]
[1756899965316,4.96,210.97,210.88,7.77]
[1756899965520,4.96,210.94,210.88,7.77]
[1756899967817,5.28686213,211.03,210.88,7.77]
[1756899968019,7.66098037,210.99,210.88,7.77]
[1756899971222,4.97,210.95,210.88,7.77]
[1756899974128,5.28686213,211.0,210.88,7.77]
[1756899974424,5.28686213,211.01,210.9,7.33]
[1756899974628,4.96,211.02,210.9,11.5961]
[1756899974829,4.96,211.02,210.91,7.33]
[1756899975724,7.66098037,211.02,210.91,7.33]
[1756899976835,2.70098037,210.99,210.91,7.33]
[1756899977130,4.96,210.98,210.91,7.33]
[1756899978633,7.66098037,211.02,210.91,7.33]
[1756899979834,4.96,211.01,210.91,7.33]
[1756899980035,4.96,210.98,210.91,7.33]
[1756899981235,4.96,210.96,210.87,7.33]
[1756899981437,1.72685035,210.95,210.87,7.33]
[1756899982234,6.68685035,210.96,210.88,1.72685035]
[1756899982442,5.28686213,211.0,210.89,7.33]
[1756899982737,1.72685035,210.97,210.89,7.33]
[1756899983938,6.68685035,210.95,210.89,7.33]
[1756899984736,1.72685035,210.93,210.85,7.33]
[1756899985738,1.72685035,210.96,210.89,7.33]
[1756899988544,1.72685035,210.94,210.86,9.05685035]
[1756899990547,6.68685035,210.92,210.86,7.33]
[1756899991647,6.68685035,210.92,210.85,7.33]
[1756899991844,1.72685035,210.88,210.8,5.65732896]
[1756899992147,1.72685035,210.88,210.81,7.33]
[1756899992747,1.72685035,210.9,210.82,1.72685035]
[1756899992947,1.72685035,210.9,210.83,7.33]
[1756900001444,4.96,210.89,210.83,7.33]
[1756900003655,1.72685035,210.86,210.83,7.33]
[1756900003855,1.72685035,210.86,210.79,7.5]
[1756900004852,1.72685035,210.88,210.81,7.5]
[1756900005452,1.72685035,210.91,210.83,7.5]
[1756900006052,1.72685035,210.93,210.84,9.22685035]
[1756900006754,4.96,210.94,210.87,7.5]
[1756900006954,1.72685035,210.94,210.87,7.5]
[1756900007558,1.72685035,210.94,210.87,11.7667]
[1756900007859,1.72685035,210.96,210.87,7.5]
[1756900008057,4.96,210.91,210.87,7.5]
[1756900008262,4.96,210.91,210.84,7.5]
[1756900008451,1.72685035,210.9,210.84,7.5]
[1756900009159,4.96,210.91,210.84,7.5]
[1756900010464,1.72685035,210.9,210.84,7.5]
[1756900011561,4.96,210.91,210.84,7.5]
[1756900011757,1.72685035,210.94,210.88,7.5]
[1756900015363,6.68685035,210.92,210.83,7.5]
[1756900015560,6.68685035,210.92,210.83,9.22685035]
[1756900019766,1.72685035,210.9,210.83,9.22685035]
[1756900021057,6.68685035,210.92,210.83,9.22685035]
[1756900021257,6.68685035,210.92,210.79,3.95053987]
[1756900021258,6.68685035,210.95,210.86,7.5]
[1756900021458,4.96,210.95,210.88,7.5]
[1756900021761,5.28686213,210.98,210.9,7.5]
[1756900021762,1.72685035,210.98,210.9,7.5]
[1756900021963,4.96,210.97,210.9,7.5]